Cogmind - Beta 16 @@@ ROGUE MODE // 2025.11.01 @ 10:04:00 Player: H3-MLN Result: Destroyed by 7Y-RFU(g) with Beamcaster Performance ------------- Evolutions (0) 0 Regions Visited (3) 600 Robots Destroyed (14) 70 Value Destroyed (352) 352 Prototype IDs (19) 380 Alien Tech Used (0) 0 Bonus (164) 164 TOTAL SCORE: 1566 Bonus ------- Registered with UFD 300 Friendly Fire -136 Cogmind --------- Core Integrity 0/250 Matter 290/300 Energy 99/100 System Corruption 0% Temperature Cool (11) Movement Flying (44) Location -7/Scraptown Parts ------- > --- POWER (1) -------- (None) > --- PROPULSION (2) --- Flight Unit Makeshift Flight Unit > --- UTILITY (2) ------ Medium Storage Unit > --- WEAPON (2) ------- (None) > --- INVENTORY (10) --- Flight Unit Flight Unit Makeshift Thermal Plating A0-MCA's Component Scanner Powered Cannon CPS Tube (2) CPS Tube (2) Multitool Companion Sword Peak State ------------ > --- POWER ------------ Makeshift Power Source > --- PROPULSION ------- Flight Unit Makeshift Flight Unit > --- UTILITY ---------- Medium Storage Unit Makeshift Thermal Plating > --- WEAPON ----------- Makeshift Hammer > --- INVENTORY -------- Flight Unit A0-MCA's Component Scanner Powered Cannon Multitool [Rating: 20] Favorites ----------- Power Subdweller Power Source Engine Subdweller Power Source Propulsion Light Treads Treads Light Treads Wheel Armored Wheel Flight Unit Flight Unit Utility High-capacity Storage Unit Device Seismic Detector Storage High-capacity Storage Unit Processor Core Analyzer Protection Light Armor Plating Weapon Riot Gun Energy Gun Riot Gun Ballistic Gun Barrage Gun Impact Weapon Makeshift Hammer Slashing Weapon Companion Sword Special Melee Weapon Datajack Build | -11 -10 -10 -7 ------- Run | Yrd Mat Sub Scr Slots Evolved . | . . . . Power . | . . . . Propulsion . | . . . . Utility . | . . . . Weapon . | . . . . Parts Attached 29 | 7 5 6 11 Power 3 | 1 . 1 1 Engine 3 | 1 . 1 1 Core . | . . . . Reactor . | . . . . Propulsion 8 | 2 1 2 3 Treads 2 | 1 . 1 . Leg . | . . . . Wheel 3 | 1 1 1 . Hover . | . . . . Flight 3 | . . . 3 Utility 8 | 2 3 . 3 Device 1 | 1 . . . Storage 4 | 1 2 . 1 Processor 1 | . . . 1 Hackware . | . . . . Protection 2 | . 1 . 1 Artifact . | . . . . Weapon 10 | 2 1 3 4 Energy Gun 2 | 1 . 1 . Energy Cannon . | . . . . Ballistic Gun 4 | 1 1 2 . Ballistic Cannon . | . . . . Launcher . | . . . . Special Weapon . | . . . . Impact Weapon 1 | . . . 1 Slashing Weapon 2 | . . . 2 Piercing Weapon . | . . . . Special Melee Weapon 1 | . . . 1 Unidentified Prototypes 1 | . . . 1 Parts Lost 4 | . 1 3 . Power . | . . . . Propulsion 2 | . . 2 . Utility 1 | . . 1 . Weapon 1 | . 1 . . Highest Loss Streak 2 | . 1 2 . To Critical Strikes . | . . . . Average Backups 13 | 2 9 15 14 Power 2 | . 1 3 2 Propulsion 3 | . 4 5 2 Utility 3 | . 1 3 3 Weapon 3 | . . 2 4 Tool/Special . | . . . . Unused Backups 24 | . 2 6 16 Power 4 | . . 2 2 Propulsion 9 | . 1 3 5 Utility 4 | . . 1 3 Weapon 4 | . 1 . 3 Tool/Special 3 | . . . 3 Average Slot Usage (%) 91 | . 99 99 87 Engine 11 | . 14 14 10 Treads 12 | . 14 17 10 Wheel 10 | . 14 10 10 Flight 5 | . . . 7 Device 9 | . 10 8 10 Storage 13 | . 14 14 13 Protection 2 | . 3 5 1 Energy Gun 8 | . 12 1 9 Ballistic Gun 13 | . 14 25 8 Slashing Weapon 1 | . . . 2 Peak Build Rating 20 | 7 9 18 20 Average Rating 14 | 5 8 12 16 On Entrance 8 | . 7 9 18 Avg Prop Armor Cover (%) 12 | 15 12 12 12 Naked Turns . | . . . . Heaviest Build 53 | 14 51 53 52 Greatest Support 40 | 10 12 40 12 Greatest Overweight (x) 4 | 1 4 4 4 Average Overweight (x) 2 | . 1 3 2 Largest Inventory Capacity 20 | 8 20 20 20 Average Capacity 16 | 7 14 20 16 Most Carried 20 | 4 13 20 20 Average Carried 15 | 2 9 16 16 Final Capacity 20 | 8 20 20 10 Final Carried 20 | 4 12 20 10 Class Distribution -------------------- 99% | Mutant Dominant Class ---------------- Mutant | -10/Materials Mutant | -10/Subcaves Mutant | -7/Scraptown Resources | -11 -10 -10 -7 ----------- Run | Yrd Mat Sub Scr Matter Collected 629 | 272 125 122 110 Remotely . | . . . . Salvage Created 450 | 54 251 123 22 Parts 30 | 8 16 6 . Haulers Intercepted . | . . . . Recyclers Shooed 1 | . 1 . . Parts Field Recycled . | . . . . Retrieved Matter . | . . . . Parts Self-Destructed 2 | . . 2 . Prevented . | . . . . Parts Restored . | . . . . Kills | -11 -10 -10 -7 ------- Run | Yrd Mat Sub Scr Combat Hostiles Destroyed 9 | . 6 3 . Guns 8 | . 5 3 . Classes Destroyed 8 | 1 4 2 1 Worker 1 | . 1 . . Tunneler 3 | 3 . . . Operator 1 | . 1 . . Swarmer 1 | . 1 . . Grunt 7 | . 5 2 . Artisan 1 | . . 1 . Subdweller 1 | . . 1 . Tinkerer 1 | . . . 1 Best Kill Streak 3 | 3 3 2 . Combat Bots Only 3 | . 3 2 . Max Kills in Single Turn 1 | 1 1 1 1 Gunslinging . | . . . . Exploded . | . . . . Melee . | . . . . Uniques/NPCs Destroyed . | . . . . Combat | -11 -10 -10 -7 -------- Run | Yrd Mat Sub Scr Hostile Shots Fired 87 | . 45 25 17 Missed 18 | . 6 5 7 Hits 69 | . 39 20 10 Projectile 69 | . 39 20 10 Critical Strikes 1 | . 1 . . Damage Taken 917 | . 444 339 134 Core 263 | . 76 97 90 Absorbed by Shields . | . . . . Core Remaining (%) 100 | 100 . . . Volleys Fired 72 | 4 43 25 . Largest 2 | 2 2 2 . Hottest 70 | 70 70 50 . Shots Fired 138 | 8 84 46 . Gun 138 | 8 84 46 . Cannon . | . . . . Launcher . | . . . . Special . | . . . . Kinetic 98 | 4 48 46 . Thermal 40 | 4 36 . . Explosive . | . . . . Electromagnetic . | . . . . Robot Hit Streak 15 | 4 12 15 . Robot Miss Streak 5 | 1 5 3 . Penetration Max . | . . . . Secondary Targets 3 | . 2 1 . Max Gunslinging Chain 1 | . 1 1 . Shots Hit Robots 96 | 4 56 34 2 Core Hits 32 | 4 15 13 . Critical Kills 1 | . . 1 . Critical Parts Destroyed . | . . . . Critical Strikes 4 | . 3 1 . Burn 3 | . 3 . . Destroy 1 | . . 1 . Melee Attacks 3 | . . . 3 Impact 2 | . . . 2 Slashing . | . . . . Piercing . | . . . . Sneak Attacks 2 | . . . 2 Combat Hostiles . | . . . . Follow-up Attacks . | . . . . Damage Inflicted 1099 | 67 561 393 78 Guns 1021 | 67 561 393 . Cannons . | . . . . Explosions . | . . . . Melee 78 | . . . 78 Ramming . | . . . . Kinetic 683 | 16 274 393 . Thermal 338 | 51 287 . . Explosive . | . . . . Electromagnetic . | . . . . Impact 78 | . . . 78 Slashing . | . . . . Piercing . | . . . . Highest Corruption . | . . . . Average Corruption . | . . . . Corruption Purged . | . . . . Corruption Blocked . | . . . . Overload Shots . | . . . . Overflow Damage 68 | . . . 68 Projectiles . | . . . . Explosions . | . . . . Melee 68 | . . . 68 Knockbacks . | . . . . Impact . | . . . . Kinetic . | . . . . Secondary . | . . . . Self-Inflicted Damage . | . . . . Shots . | . . . . Rammed . | . . . . Targets Rammed . | . . . . Kicked . | . . . . Crushed . | . . . . Highest Temperature 238 | 80 238 . . Average Temperature 62 | 48 63 . . Received Heat Transfer 414 | . 237 132 45 Effects 1 | . 1 . . Energy Bleed 1 | . 1 . . Siege Activations . | . . . . Martial Activations . | . . . . Shielding Activations . | . . . . Robots Disrupted . | . . . . Combat Hostiles . | . . . . Robots Corrupted 1 | . . . 1 Combat Hostiles . | . . . . Parts Fried 1 | . . . 1 Impact Corruptions 2 | . . . 2 Robots Melted 1 | . 1 . . Combat Hostiles 1 | . 1 . . Parts Melted 3 | . 3 . . Heat Transferred 1221 | 148 1073 . . Parts Sabotaged . | . . . . Parts Stolen . | . . . . Parts Stripped . | . . . . Power Chain Reactions . | . . . . Alert | -11 -10 -10 -7 ------- Run | Yrd Mat Sub Scr Maximum Alert Level . | . . . . Low Security (%) 100 | 100 100 . . Level 1 . | . . . . Level 2 . | . . . . Level 3 . | . . . . Level 4 . | . . . . Level 5 . | . . . . High Security . | . . . . Max Security . | . . . . Peak Influence 76 | 10 76 . . Initial 3 | . 3 . . Average 11 | 1 12 . . Influence Increases 215 | 15 150 50 . Destroy 0b10 Robot/C 160 | . 120 40 . Destroy 0b10 Robot/NC 25 | 15 10 . . Destroy Leader 30 | . 20 10 . Influence Decreases 215 | 10 87 118 . Entered New Map 35 | . 2 33 . Time Decay 170 | 10 75 85 . Lost Part 10 | . 10 . . Squads Dispatched 3 | . 3 . . Investigation 1 | . 1 . . Extermination . | . . . . Reinforcement 2 | . 2 . . Assault . | . . . . Garrison . | . . . . Intercept . | . . . . Searches Triggered . | . . . . Construction Impeded . | . . . . Haulers Reinforced . | . . . . Active Scanning Responses . | . . . . Cargo Convoy Interrupts . | . . . . Stealth | -11 -10 -10 -7 --------- Run | Yrd Mat Sub Scr Distress Signals 1 | . 1 . . Communications Jammed . | . . . . Distress Signals . | . . . . Times Spotted 28 | . 16 3 9 Peak Tracking Total 12 | . 4 2 12 Tactical Retreats . | . . . . Traps | -11 -10 -10 -7 ------- Run | Yrd Mat Sub Scr Traps Triggered 3 | . 3 . . Indirectly . | . . . . Trap Hack Attempts . | . . . . Triggered . | . . . . Disarmed . | . . . . Reprogrammed . | . . . . Reused . | . . . . Traps Extracted . | . . . . Installed . | . . . . Triggered . | . . . . Machines | -11 -10 -10 -7 ---------- Run | Yrd Mat Sub Scr Machines Disabled 3 | . . 2 1 Max in Single Turn 1 | . . 1 1 Machines Repaired . | . . . . Machines Dismantled . | . . . . Machines Sabotaged . | . . . . Overloaded Fab Kills . | . . . . Hacking | -11 -10 -10 -7 --------- Run | Yrd Mat Sub Scr Machines Accessed 4 | . 2 1 1 Terminals 2 | . 2 . . Fabricators . | . . . . Repair Stations . | . . . . Recycling Units . | . . . . Scanalyzers . | . . . . Garrison Access . | . . . . Total Hacks 7 | . 5 1 1 Successful 3 | . 1 1 1 Failed 4 | . 4 . . Catastrophic . | . . . . Database Lockouts . | . . . . Manual 3 | . 3 . . Terminals 5 | . 5 . . Fabricators . | . . . . Repair Stations . | . . . . Recycling Units . | . . . . Scanalyzers . | . . . . Garrison Access . | . . . . Terminal Hacks 3 | . 1 1 1 Part Schematic 1 | . 1 . . Open Door 1 | . . . 1 Proto ID Catalog 1 | . . 1 . Fabricator Hacks . | . . . . Repair Station Hacks . | . . . . Recycling Unit Hacks . | . . . . Scanalyzer . | . . . . Garrison Access Hacks . | . . . . Unauthorized Hacks . | . . . . Terminals . | . . . . Fabricators . | . . . . Repair Stations . | . . . . Recycling Units . | . . . . Scanalyzers . | . . . . Garrison Access . | . . . . Data Cores Recovered . | . . . . Used . | . . . . Hacking Detections 2 | . 2 . . Full Trace Events . | . . . . Feedback Events . | . . . . Feedback Blocked . | . . . . Robot Schematics Acquired . | . . . . Robots Built . | . . . . Authchips . | . . . . Time . | . . . . Total Robot Build Rating . | . . . . Part Schematics Acquired 2 | . 1 . 1 Parts Built . | . . . . Authchips . | . . . . Time . | . . . . Total Part Build Rating . | . . . . Part Studies Acquired . | . . . . Parts Repaired . | . . . . Time . | . . . . Parts Recycled . | . . . . Recycled Matter . | . . . . Retrieved Matter . | . . . . Retrieved Components . | . . . . Parts Scanalyzed . | . . . . Part Schematics Acquired . | . . . . Parts Damaged . | . . . . Bothacking | -11 -10 -10 -7 ------------ Run | Yrd Mat Sub Scr Used RIF Installer . | . . . . Robots Hacked 1 | . . . 1 Non-combat . | . . . . Combat 1 | . . . 1 Robot Hacks Applied 1 | . . . 1 parse_system 1 | . . . 1 Relay Couplers Released . | . . . . Fabnet Peak Effective % . | . . . . Robots Rewired . | . . . . Allies Hacked . | . . . . Hacks Repelled . | . . . . Allies | -11 -10 -10 -7 -------- Run | Yrd Mat Sub Scr Total Allies . | . . . . Largest Group . | . . . . Highest-Rated Group . | . . . . Highest-Rated Ally . | . . . . Total Orders . | . . . . Ally Attacks . | . . . . Total Damage . | . . . . Kills . | . . . . Allies Corrupted . | . . . . Allies Melted . | . . . . Intel | -11 -10 -10 -7 ------- Run | Yrd Mat Sub Scr Active Infowar (turns) 2619 | 7 394 446 1772 Seismic 2619 | 7 394 446 1772 Robot Analysis Total . | . . . . Derelict Logs Recovered 4 | . . . 4 Drone Launches . | . . . . Drone Recoveries . | . . . . Exploration | -11 -10 -10 -7 ------------- Run | Yrd Mat Sub Scr Turns Passed 3827 | 74 537 745 2471 Spaces Moved 2812 | 54 322 375 2061 Core 19 | 5 . . 14 Treads 50 | . . 50 . Legs . | . . . . Wheels 1876 | 49 322 325 1180 Hover . | . . . . Flight 867 | . . . 867 Fastest Speed 37 | 50 95 150 37 Average Speed 123 | 88 119 162 117 Slowest Speed 240 | 95 150 240 150 Overloaded Moves . | . . . . Propulsion Burnouts . | . . . . Robots Hopped . | . . . . Potential Cave-ins . | . . . . Cave-ins Triggered . | . . . . Exploration Rate (%) 40 | 4 57 18 83 Regions Visited 3 Branch Regions 2 Pre-discovered Areas 2 | . . 1 1 Known Exits Taken . | . . . . Unknown Exits Taken 3 | 1 1 1 . Scrap Searched 9 | . . 4 5 Spaces Dug . | . . . . Terrain Destroyed . | . . . . Melee . | . . . . Projectile . | . . . . AOE . | . . . . Terrain Rammed . | . . . . Walls Destroyed . | . . . . Machines Disabled . | . . . . Actions | -11 -10 -10 -7 --------- Run | Yrd Mat Sub Scr Total 3046 | 69 399 476 2102 Wait 60 | 1 13 46 . Move 2809 | 53 321 374 2061 Hop . | . . . . Pick Up 37 | 4 10 16 7 Fast Attach 20 | 7 3 1 9 Attach 4 | . 1 3 . Detach 3 | . . . 3 Swap 10 | . 4 3 3 Drop 28 | . 4 8 16 Fire 72 | 4 43 25 . Melee 3 | . . . 3 Ram . | . . . . Kick . | . . . . Crush . | . . . . Escape Stasis . | . . . . Rewire . | . . . . Trap . | . . . . Miscellaneous . | . . . . Route ------- -11/Scrapyard -10/Materials (discovered 3 exits: [*Mat x2] / *Sub) -10/Subcaves -7/Scraptown (discovered 1 exit: [*Fac]) History --------- Turn | Location | Event 2 | -11/Scrapyard | Discovered new exit (range 16) 75 | -11/Scrapyard | Entered Materials 162 | -10/Materials | Discovered new exit (range 16) 308 | -10/Materials | Build established: Mutant 394 | -10/Materials | Discovered new exit (range 5) 602 | -10/Materials | Discovered new exit (range 8) 612 | -10/Materials | Entered Subcaves 613 | -10/Subcaves | Approached by a straggling Scientist 682 | -10/Subcaves | Learned location of Zion (-6) 682 | -10/Subcaves | Met a Zionite searching for "candidates" 721 | -10/Subcaves | Core integrity fell below 50% 875 | -10/Subcaves | Disturbed a concealed Subdweller 1001 | -10/Subcaves | Scientist uncovered a shortcut to Scraptown 1172 | -10/Subcaves | Visited 4L-MR0's lab 1191 | -10/Subcaves | Found Powered Cannon 1357 | -10/Subcaves | Entered Scraptown 1569 | -7/Scraptown | Visited Assassins FH 1579 | -7/Scraptown | Visited The Evicted 1599 | -7/Scraptown | Visited Spacefarers 1642 | -7/Scraptown | Visited IN-MT5's Study 1666 | -7/Scraptown | Visited Comm Corps 1692 | -7/Scraptown | Visited UFD Registry 1692 | -7/Scraptown | Registered with UFD as "Electroparser" 1726 | -7/Scraptown | Visited Supply Room 1797 | -7/Scraptown | Visited DA-N13 Charitable Foundation 1803 | -7/Scraptown | Found DCF Scrap (28 items) 1837 | -7/Scraptown | Visited Observation Area 1851 | -7/Scraptown | Visited Junk Repository 1890 | -7/Scraptown | Visited Sword Containment 1917 | -7/Scraptown | Visited Derelict Rescue Squad 1941 | -7/Scraptown | Visited Junk Repository 2194 | -7/Scraptown | Scanned Subdweller tech in exchange for log data 2197 | -7/Scraptown | Learned Factory terminal intel 2199 | -7/Scraptown | Learned Factory stockpile data 2200 | -7/Scraptown | Learned Research stockpile data 2202 | -7/Scraptown | Learned location of Warlord (-5) 2220 | -7/Scraptown | Discovered new exit (range 11) 2293 | -7/Scraptown | Guru changed UFD alias to "Wavespreader" 3172 | -7/Scraptown | Visited A0-MCA Data Center 3174 | -7/Scraptown | Given a B+ rating by A0-MCA 3176 | -7/Scraptown | Found A0-MCA's Component Scanner 3433 | -7/Scraptown | Visited TADAMA 3812 | -7/Scraptown | Attacked by Scraptown defenders 3827 | -7/Scraptown | Core integrity fell below 20% 3828 | -7/Scraptown | Destroyed by 7Y-RFU(g) with Beamcaster Last Messages --------------- 03474_ Acquired Prototype Slashing Weapon. Prototype Slashing Weapon: "You did the right thing." 03474_ Identified Companion Sword. 03562_ Acquired 10 matter. Companion Sword: "Do you know anything about the Techn---" Companion Sword: "I'll remember this when it comes time to hit something." 03808_ IN-MT5: "Overhelming numbers could provide quite an effective positive reinforcement loop..." 03811_ Sneak attack on IN-MT5. 03811_ Destroyed Component Analysis Suite. 03811_ Destroyed Recalibrator. 03811_ IN-MT5 system corrupted by crushing effect. 03812_ IN-MT5 system terminally corrupted. 03812_ Lgt. Nuclear Core fried. 03812_ ANNOUNCEMENT: Intruder alert! Defend Scraptown! 03816_ IN-MT5's Safe breached. 03819_ Dropped Mak. Hammer. 03819_ Extracted schematic archive: IN-MT5's Pitchfork "Insurrection". 03826_ Penetrated by Bolt. 03827_ Bolt penetrates Wall. Map ----- +----------------------------------------------------+ | #??? "#?# | | ###########???########### #????? #?# | | #??????????????????????# #??????? ??# | | #######???????#######?### ########## ########### | | """"""#???????#""""" ?# | | "#???????# " " # | | / = "#???????# # | | [! "#???????# """ | | ![[ "#???????# """ # | | / "#???????# """ # #### ############ | | !]! "#???????# """ ?# #?#"" ""#??# | | ! "#???????? """ ?# h #?#""" " ""#??# | | "#???????? ??# #?#"" " "#??# | | """ ""#??????? ??# #?#"" " "#??# | | ### ###???????#""""???# #?#" " "#??# | | ### ###???????#####???# h #?#"" " "#??# | | """ ""#???????????????# #?#"" "" ""#??# | | "#???????????????# #?#" " """"#??# | | "" "#??????########?# #?#""" """""#??# | | "" "#??????# # #?#""""""""""#??# | | "#??????? """ # #?############??# | | ""#????????"""" #???????????????# | | """""#??????? X""" #g #???????????????# | | """"""#?????????""" # #???????????????# | | """"""?????????""" ?# g #???????????????# | | #####?????????? ?# @ ################# | | ???????????????#####??# | | ???X""#???????????????# o | | ?? "#???????????????# r o | | " "#???????????????# r | | " "#?????????####### | | " "#????????## r | | " "#????????# h E | | "" """########### | | ############ ############## ## | | #????# #?# | | "" """##"" """### #????#" """#?#" " | | " "##"" "#?# #????#" " #?#" "###### " | | "" "##"" "#?# #????#"" " #?#" # """#" " | | ?" "##"" "#?# #????#"""% " #?#" "# #" " | | ?? " "##" "#?# #????#"" " #?#" "#"" # " | | ???" "##" "#?# #????#" "###?#" "###+## " | | ?????"##""""""#?# #????#" " / #?#" " | | ???????########?# #????#"""""""###?#"""""""""""" | | ######??#####???# #????#########???############# | | """"""#?#"""#???# #????????????????????????????? | | "#?#" "#???# #????????????????????????##### | | """ "#?# #???# #??????????????????????""""""" | | """ "#?# ##### #?????????????????????""" """" | | """ "??# ##????????????##????"""" " " | +----------------------------------------------------+ Best States ------------- Heat Dissipation 25 Energy Generation 15 Energy Capacity 250 Matter Stores 300 Matter Capacity 300 Sight Range 16 Terrain Scan Density 10 Armor Coverage 150 Resistance: TH 10 Evasion (%) 62 Core Analysis 6 Recoil Reduction 2 Item Schematics ----------------- Huge Storage Unit | -10/Materials | Hacked IN-MT5's Pitchfork "Insurrection" | -7/Scraptown | Archive Robot Schematics ------------------ None Fabricated ------------ Nothing Repaired ---------- Nothing Studied --------- None Alien Tech Used ----------------- None Achievements -------------- None Challenges ------------ None Game ------ Seed TargetGunBuckler Manual? 0 Play Time 00:20:10 Cumulative 1019.7 hours Start 2025.11.01 @ 09:44:31 End 2025.11.01 @ 10:04:00 Sessions 1 Manual Loads 0 Difficulty Rogue Special Mode None Game No. 369 Rogue 364 Adventurer 4 Explorer 1 Win Type - Total 21 Types 13/3/1/1/0/1/0/0/1/1 Lore% 96 Gallery% 94 Achievement% 78 Wizard Run 0 Options --------- Layout 0 ASCII 0 Keyboard 0 Movement Numpad Keybinds 0 Fullscreen 2 Font 18/SmallcapsGlow Map View 76x50 Zoom Use 0% Tactical HUD 1 Map Filters NONE Filters NONE Steam 1 RUN: 8e859332-3a98-4c20-b1c5-94a89183f750